[Event "Titled Tuesday Blitz May 24 Late 2022"]
[White "Matinian, Nikita"]
[Black "Zhigalko, Sergei"]
[WhiteFideId "24129100"]
[BlackFideId "13502956"]
[WhiteElo "2422"]
[BlackElo "2662"]
[Result "0-1"]
[Round "03"]
[TimeControl "180+1"]
[Date "2022.05.24"]
[WhiteClock "0:00:04"]
[BlackClock "0:00:27"]

1. e4 {[%clk 0:03:00]}  c5 {[%clk 0:03:00]} 2. Nf3 {[%clk 0:03:00]}  Nc6 {[%clk 0:03:00]} 3. Bb5 {[%clk 0:03:00]}  Nf6 {[%clk 0:03:00]} 4. Nc3 {[%clk 0:03:00]}  Qc7 {[%clk 0:03:00]} 5. Bxc6 {[%clk 0:03:00]}  dxc6 {[%clk 0:03:00]} 6. d3 {[%clk 0:02:59]}  Bg4 {[%clk 0:03:01]} 7. h3 {[%clk 0:02:59]}  Bh5 {[%clk 0:03:01]} 8. g4 {[%clk 0:02:58]}  Bg6 {[%clk 0:03:00]} 9. Qe2 {[%clk 0:02:57]}  Nd7 {[%clk 0:02:55]} 10. Nh4 {[%clk 0:02:54]}  e6 {[%clk 0:02:55]} 11. f4 {[%clk 0:02:52]}  Be7 {[%clk 0:02:55]} 12. Nf3 {[%clk 0:02:47]}  f6 {[%clk 0:02:49]} 13. Be3 {[%clk 0:02:34]}  O-O-O {[%clk 0:02:48]} 14. O-O-O {[%clk 0:02:15]}  Rhe8 {[%clk 0:02:44]} 15. Kb1 {[%clk 0:02:13]}  b5 {[%clk 0:02:33]} 16. Qf2 {[%clk 0:01:47]}  e5 {[%clk 0:02:24]} 17. f5 {[%clk 0:01:45]}  Bf7 {[%clk 0:02:24]} 18. g5 {[%clk 0:01:43]}  Qa5 {[%clk 0:02:21]} 19. b3 {[%clk 0:01:13]}  c4 {[%clk 0:02:14]} 20. dxc4 {[%clk 0:01:09]}  bxc4 {[%clk 0:01:53]} 21. Na4 {[%clk 0:01:08]}  Kb7 {[%clk 0:01:09]} 22. gxf6 {[%clk 0:01:07]}  gxf6 {[%clk 0:01:09]} 23. Rhg1 {[%clk 0:01:06]}  Nb6 {[%clk 0:00:50]} 24. Nc5+ {[%clk 0:00:55]}  Ka8 {[%clk 0:00:50]} 25. Ne6 {[%clk 0:00:50]}  Bxe6 {[%clk 0:00:46]} 26. fxe6 {[%clk 0:00:51]}  Rb8 {[%clk 0:00:43]} 27. Bxb6 {[%clk 0:00:35]}  Rxb6 {[%clk 0:00:43]} 28. Rd7 {[%clk 0:00:33]}  Ra6 {[%clk 0:00:37]} 29. a4 {[%clk 0:00:21]}  Rb8 {[%clk 0:00:36]} 30. Kc1 {[%clk 0:00:04]}  cxb3 {[%clk 0:00:30]} 31. Rxe7 {[%clk 0:00:04]}  b2+ {[%clk 0:00:27]} 0-1


[Site "https://www.chess.com"]

[Event "Titled Tuesday Blitz May 24 Late 2022"]
[White "Mekhitarian, Krikor Sevag"]
[Black "Koutlas, Nikolaos"]
[WhiteFideId "2107660"]
[BlackFideId "25827138"]
[WhiteElo "2598"]
[BlackElo "1645"]
[Result "1-0"]
[Round "03"]
[TimeControl "180+1"]
[Date "2022.05.25"]
[WhiteClock "0:00:20"]
[BlackClock "0:00:04"]

1. d4 {[%clk 0:03:00]}  Nf6 {[%clk 0:02:58]} 2. Nf3 {[%clk 0:03:00]}  g6 {[%clk 0:02:58]} 3. Nc3 {[%clk 0:03:00]}  d5 {[%clk 0:02:57]} 4. Bf4 {[%clk 0:03:00]}  Bg7 {[%clk 0:02:57]} 5. e3 {[%clk 0:02:59]}  O-O {[%clk 0:02:56]} 6. Be2 {[%clk 0:03:00]}  Bf5 {[%clk 0:02:50]} 7. Ne5 {[%clk 0:03:00]}  Nbd7 {[%clk 0:02:45]} 8. g4 {[%clk 0:02:54]}  Be6 {[%clk 0:02:36]} 9. h4 {[%clk 0:02:49]}  Ne4 {[%clk 0:02:26]} 10. Nxe4 {[%clk 0:02:39]}  dxe4 {[%clk 0:02:13]} 11. Nc4 {[%clk 0:02:31]}  c5 {[%clk 0:02:09]} 12. c3 {[%clk 0:02:30]}  Rc8 {[%clk 0:02:05]} 13. Nd2 {[%clk 0:02:27]}  cxd4 {[%clk 0:02:04]} 14. cxd4 {[%clk 0:02:28]}  Nf6 {[%clk 0:01:37]} 15. Bg3 {[%clk 0:02:16]}  Qa5 {[%clk 0:01:30]} 16. g5 {[%clk 0:02:02]}  Nh5 {[%clk 0:01:09]} 17. Bh2 {[%clk 0:01:56]}  f6 {[%clk 0:00:54]} 18. O-O {[%clk 0:01:32]}  fxg5 {[%clk 0:00:52]} 19. Nxe4 {[%clk 0:01:32]}  gxh4 {[%clk 0:00:33]} 20. Nc5 {[%clk 0:01:33]}  Bh3 {[%clk 0:00:31]} 21. Bg4 {[%clk 0:01:09]}  Bxf1 {[%clk 0:00:23]} 22. Qxf1 {[%clk 0:01:09]}  b6 {[%clk 0:00:20]} 23. Ne6 {[%clk 0:00:50]}  Rf6 {[%clk 0:00:13]} 24. Nxg7 {[%clk 0:00:49]}  Qg5 {[%clk 0:00:12]} 25. Qg2 {[%clk 0:00:28]}  Rc2 {[%clk 0:00:12]} 26. Nxh5 {[%clk 0:00:21]}  Rfxf2 {[%clk 0:00:10]} 27. Be6+ {[%clk 0:00:20]}  Kh8 {[%clk 0:00:03]} 28. Qxg5 {[%clk 0:00:20]}  Rxh2 {[%clk 0:00:04]} 29. Qe5# {[%clk 0:00:20]} 1-0


[Site "https://www.chess.com"]

[Event "Titled Tuesday Blitz May 24 Late 2022"]
[White "Melkumyan, Hrant"]
[Black "Sapunov, Evgeny"]
[WhiteFideId "13302485"]
[BlackFideId "4126661"]
[WhiteElo "2604"]
[BlackElo "2470"]
[Result "1-0"]
[Round "03"]
[TimeControl "180+1"]
[Date "2022.05.24"]
[WhiteClock "0:00:04"]
[BlackClock "0:00:03"]

1. c4 {[%clk 0:03:00]}  Nf6 {[%clk 0:02:59]} 2. d4 {[%clk 0:02:59]}  g6 {[%clk 0:02:59]} 3. Nc3 {[%clk 0:02:58]}  Bg7 {[%clk 0:02:59]} 4. e4 {[%clk 0:02:58]}  O-O {[%clk 0:02:59]} 5. f3 {[%clk 0:02:58]}  d6 {[%clk 0:02:59]} 6. Nge2 {[%clk 0:02:58]}  Nc6 {[%clk 0:02:59]} 7. Be3 {[%clk 0:02:58]}  a6 {[%clk 0:03:00]} 8. Qd2 {[%clk 0:02:48]}  Rb8 {[%clk 0:03:00]} 9. Rc1 {[%clk 0:02:40]}  Bd7 {[%clk 0:02:57]} 10. Bh6 {[%clk 0:02:39]}  b5 {[%clk 0:02:50]} 11. Bxg7 {[%clk 0:02:39]}  Kxg7 {[%clk 0:02:49]} 12. cxb5 {[%clk 0:02:35]}  axb5 {[%clk 0:02:49]} 13. Ng3 {[%clk 0:02:31]}  b4 {[%clk 0:02:16]} 14. Nd1 {[%clk 0:02:30]}  e5 {[%clk 0:02:14]} 15. dxe5 {[%clk 0:02:26]}  dxe5 {[%clk 0:02:07]} 16. Bc4 {[%clk 0:02:23]}  Nd4 {[%clk 0:02:02]} 17. Ne3 {[%clk 0:02:20]}  c5 {[%clk 0:01:42]} 18. O-O {[%clk 0:02:19]}  Rc8 {[%clk 0:01:37]} 19. f4 {[%clk 0:02:14]}  Qc7 {[%clk 0:01:17]} 20. f5 {[%clk 0:02:03]}  h6 {[%clk 0:01:09]} 21. Rf2 {[%clk 0:01:46]}  g5 {[%clk 0:01:06]} 22. Qd1 {[%clk 0:01:38]}  Be8 {[%clk 0:00:50]} 23. Nh5+ {[%clk 0:01:15]}  Nxh5 {[%clk 0:00:50]} 24. f6+ {[%clk 0:01:14]}  Kg6 {[%clk 0:00:32]} 25. Nd5 {[%clk 0:01:13]}  Nf4 {[%clk 0:00:19]} 26. Nxc7 {[%clk 0:01:11]}  Rxc7 {[%clk 0:00:18]} 27. Kh1 {[%clk 0:01:04]}  Bc6 {[%clk 0:00:18]} 28. Rxf4 {[%clk 0:00:51]}  exf4 {[%clk 0:00:16]} 29. e5 {[%clk 0:00:52]}  h5 {[%clk 0:00:15]} 30. Be2 {[%clk 0:00:38]}  Be4 {[%clk 0:00:11]} 31. Bxh5+ {[%clk 0:00:35]}  Kh6 {[%clk 0:00:11]} 32. Bf3 {[%clk 0:00:31]}  Bxf3 {[%clk 0:00:10]} 33. gxf3 {[%clk 0:00:32]}  Re8 {[%clk 0:00:10]} 34. a3 {[%clk 0:00:09]}  bxa3 {[%clk 0:00:09]} 35. bxa3 {[%clk 0:00:10]}  Rxe5 {[%clk 0:00:09]} 36. Qa4 {[%clk 0:00:10]}  Re6 {[%clk 0:00:07]} 37. Qa8 {[%clk 0:00:10]}  Rxf6 {[%clk 0:00:06]} 38. Qh8+ {[%clk 0:00:10]}  Kg6 {[%clk 0:00:06]} 39. Qg8+ {[%clk 0:00:09]}  Kf5 {[%clk 0:00:06]} 40. Qh7+ {[%clk 0:00:08]}  Ke6 {[%clk 0:00:05]} 41. Re1+ {[%clk 0:00:08]}  Kd6 {[%clk 0:00:05]} 42. Qh8 {[%clk 0:00:08]}  Re6 {[%clk 0:00:05]} 43. Qd8+ {[%clk 0:00:08]}  Kc6 {[%clk 0:00:05]} 44. Qa8+ {[%clk 0:00:07]}  Kd6 {[%clk 0:00:05]} 45. Rb1 {[%clk 0:00:06]}  Re2 {[%clk 0:00:04]} 46. Qd8+ {[%clk 0:00:06]}  Kc6 {[%clk 0:00:04]} 47. Qa8+ {[%clk 0:00:05]}  Kd6 {[%clk 0:00:03]} 48. Qa6+ {[%clk 0:00:03]}  Rc6 {[%clk 0:00:04]} 49. Qd3 {[%clk 0:00:03]}  Re3 {[%clk 0:00:03]} 50. Qf1 {[%clk 0:00:02]}  Kd5 {[%clk 0:00:03]} 51. Qd1 {[%clk 0:00:02]}  c4 {[%clk 0:00:03]} 52. Qg1 {[%clk 0:00:03]}  c3 {[%clk 0:00:04]} 53. Qxg5+ {[%clk 0:00:03]}  Kc4 {[%clk 0:00:03]} 54. Qxf4 {[%clk 0:00:03]}  Rd3 {[%clk 0:00:04]} 55. Rb4+ {[%clk 0:00:04]}  Kc5 {[%clk 0:00:03]} 56. Qe5# {[%clk 0:00:04]} 1-0


[Site "https://www.chess.com"]

[Event "Titled Tuesday Blitz May 24 Late 2022"]
[White "Meunier-Pion, Jean"]
[Black "Winkels, Marcel"]
[WhiteFideId "20685327"]
[BlackFideId "1003887"]
[WhiteElo "2124"]
[BlackElo "1900"]
[Result "1-0"]
[Round "03"]
[TimeControl "180+1"]
[Date "2022.05.25"]
[WhiteClock "0:00:18"]
[BlackClock "0:00:10"]

1. e4 {[%clk 0:03:00]}  c5 {[%clk 0:02:58]} 2. Nf3 {[%clk 0:02:58]}  d6 {[%clk 0:02:58]} 3. d4 {[%clk 0:02:58]}  cxd4 {[%clk 0:02:59]} 4. Nxd4 {[%clk 0:02:59]}  Nf6 {[%clk 0:02:59]} 5. Nc3 {[%clk 0:02:59]}  a6 {[%clk 0:02:59]} 6. h3 {[%clk 0:02:59]}  e5 {[%clk 0:02:57]} 7. Nde2 {[%clk 0:02:59]}  h5 {[%clk 0:02:55]} 8. g3 {[%clk 0:02:58]}  Be7 {[%clk 0:02:52]} 9. a4 {[%clk 0:02:55]}  O-O {[%clk 0:02:48]} 10. Bg2 {[%clk 0:02:54]}  Nc6 {[%clk 0:02:45]} 11. Be3 {[%clk 0:02:53]}  Be6 {[%clk 0:02:41]} 12. b3 {[%clk 0:02:51]}  Nb4 {[%clk 0:02:35]} 13. O-O {[%clk 0:02:48]}  d5 {[%clk 0:02:24]} 14. exd5 {[%clk 0:02:43]}  Nbxd5 {[%clk 0:02:23]} 15. Nxd5 {[%clk 0:02:36]}  Nxd5 {[%clk 0:02:22]} 16. Bd2 {[%clk 0:02:34]}  Rc8 {[%clk 0:02:20]} 17. c4 {[%clk 0:02:34]}  Nb4 {[%clk 0:02:17]} 18. Bc3 {[%clk 0:02:17]}  f6 {[%clk 0:02:08]} 19. Bxb7 {[%clk 0:02:05]}  Qxd1 {[%clk 0:01:45]} 20. Rfxd1 {[%clk 0:02:05]}  Rb8 {[%clk 0:01:26]} 21. Bxb4 {[%clk 0:01:58]}  Bxb4 {[%clk 0:01:25]} 22. Bxa6 {[%clk 0:01:58]}  Bc5 {[%clk 0:01:24]} 23. Bb5 {[%clk 0:01:55]}  Rfd8 {[%clk 0:01:19]} 24. Kg2 {[%clk 0:01:50]}  Bf5 {[%clk 0:01:18]} 25. Nc3 {[%clk 0:01:38]}  Bc2 {[%clk 0:01:16]} 26. Rxd8+ {[%clk 0:01:34]}  Rxd8 {[%clk 0:01:15]} 27. a5 {[%clk 0:01:26]}  Bd4 {[%clk 0:01:07]} 28. Rc1 {[%clk 0:01:18]}  Bxb3 {[%clk 0:01:06]} 29. Nd5 {[%clk 0:01:18]}  Kf7 {[%clk 0:00:50]} 30. a6 {[%clk 0:01:12]}  Ba7 {[%clk 0:00:47]} 31. Bc6 {[%clk 0:01:03]}  Rc8 {[%clk 0:00:43]} 32. Nb4 {[%clk 0:00:48]}  Bc5 {[%clk 0:00:40]} 33. Bd5+ {[%clk 0:00:48]}  Kf8 {[%clk 0:00:36]} 34. Rb1 {[%clk 0:00:32]}  Ba4 {[%clk 0:00:31]} 35. Nd3 {[%clk 0:00:30]}  Bd4 {[%clk 0:00:24]} 36. Rb7 {[%clk 0:00:27]}  Bc6 {[%clk 0:00:15]} 37. Bxc6 {[%clk 0:00:22]}  Rxc6 {[%clk 0:00:14]} 38. a7 {[%clk 0:00:23]}  Bxa7 {[%clk 0:00:12]} 39. Rxa7 {[%clk 0:00:21]}  Rxc4 {[%clk 0:00:13]} 40. Ne1 {[%clk 0:00:19]}  Rd4 {[%clk 0:00:11]} 41. Nf3 {[%clk 0:00:18]}  g6 {[%clk 0:00:10]} 42. Nxd4 {[%clk 0:00:18]} 1-0


[Site "https://www.chess.com"]

[Event "Titled Tuesday Blitz May 24 Late 2022"]
[White "Mickiewicz, Piotr"]
[Black "Vovk, Orest"]
[WhiteFideId "1114891"]
[BlackFideId "14113490"]
[WhiteElo "2223"]
[BlackElo "2203"]
[Result "1-0"]
[Round "03"]
[TimeControl "180+1"]
[Date "2022.05.25"]
[WhiteClock "0:00:06"]
[BlackClock "0:00:14"]

1. e4 {[%clk 0:03:00]}  g5 {[%clk 0:02:59]} 2. d4 {[%clk 0:02:57]}  g4 {[%clk 0:02:57]} 3. Qxg4 {[%clk 0:02:55]}  d5 {[%clk 0:02:56]} 4. Qh4 {[%clk 0:02:51]}  dxe4 {[%clk 0:02:56]} 5. Be3 {[%clk 0:02:31]}  Nf6 {[%clk 0:02:57]} 6. Nc3 {[%clk 0:02:27]}  Rg8 {[%clk 0:02:57]} 7. h3 {[%clk 0:02:17]}  Bf5 {[%clk 0:02:53]} 8. g4 {[%clk 0:02:15]}  Bg6 {[%clk 0:02:51]} 9. O-O-O {[%clk 0:02:13]}  Nd5 {[%clk 0:02:49]} 10. Nge2 {[%clk 0:02:03]}  Nc6 {[%clk 0:02:44]} 11. Bg2 {[%clk 0:01:59]}  Nxc3 {[%clk 0:02:22]} 12. Nxc3 {[%clk 0:01:58]}  Nb4 {[%clk 0:02:22]} 13. d5 {[%clk 0:01:52]}  Bg7 {[%clk 0:02:18]} 14. Bd4 {[%clk 0:01:25]}  Qd6 {[%clk 0:02:03]} 15. Bxg7 {[%clk 0:01:21]}  Rxg7 {[%clk 0:02:04]} 16. a3 {[%clk 0:01:17]}  Qf4+ {[%clk 0:02:03]} 17. Rd2 {[%clk 0:01:06]}  Nxc2 {[%clk 0:02:00]} 18. Ne2 {[%clk 0:01:01]}  Qe5 {[%clk 0:01:31]} 19. Rxc2 {[%clk 0:01:00]}  e3 {[%clk 0:01:30]} 20. f4 {[%clk 0:01:00]}  Qd6 {[%clk 0:01:14]} 21. Rc3 {[%clk 0:00:46]}  O-O-O {[%clk 0:01:06]} 22. Rd1 {[%clk 0:00:45]}  Qa6 {[%clk 0:01:00]} 23. Bf3 {[%clk 0:00:43]}  f6 {[%clk 0:00:48]} 24. f5 {[%clk 0:00:40]}  Be8 {[%clk 0:00:47]} 25. Qg3 {[%clk 0:00:40]}  Rd6 {[%clk 0:00:45]} 26. Qf4 {[%clk 0:00:39]}  h5 {[%clk 0:00:35]} 27. Rd4 {[%clk 0:00:38]}  hxg4 {[%clk 0:00:35]} 28. hxg4 {[%clk 0:00:39]}  Rh7 {[%clk 0:00:35]} 29. Rdc4 {[%clk 0:00:39]}  Bd7 {[%clk 0:00:31]} 30. Rxc7+ {[%clk 0:00:38]}  Kd8 {[%clk 0:00:29]} 31. R7c5 {[%clk 0:00:32]}  Rh3 {[%clk 0:00:25]} 32. Qxe3 {[%clk 0:00:20]}  Ke8 {[%clk 0:00:19]} 33. Kb1 {[%clk 0:00:20]}  Kf7 {[%clk 0:00:18]} 34. Ka2 {[%clk 0:00:20]}  Bb5 {[%clk 0:00:18]} 35. Nd4 {[%clk 0:00:17]}  Bd7 {[%clk 0:00:15]} 36. Ne6 {[%clk 0:00:17]}  Qf1 {[%clk 0:00:12]} 37. Rc8 {[%clk 0:00:16]}  Bxc8 {[%clk 0:00:09]} 38. Rxc8 {[%clk 0:00:17]}  Rd8 {[%clk 0:00:07]} 39. Rxd8 {[%clk 0:00:15]}  Qc4+ {[%clk 0:00:06]} 40. Kb1 {[%clk 0:00:11]}  Qf1+ {[%clk 0:00:04]} 41. Bd1 {[%clk 0:00:03]}  Qxd1+ {[%clk 0:00:04]} 42. Ka2 {[%clk 0:00:03]}  Qxd5+ {[%clk 0:00:04]} 43. Rxd5 {[%clk 0:00:02]}  Rxe3 {[%clk 0:00:04]} 44. Rd8 {[%clk 0:00:03]}  Rxe6 {[%clk 0:00:05]} 45. fxe6+ {[%clk 0:00:04]}  Kxe6 {[%clk 0:00:05]} 46. Rb8 {[%clk 0:00:04]}  b6 {[%clk 0:00:06]} 47. Rb7 {[%clk 0:00:05]}  f5 {[%clk 0:00:06]} 48. Rxa7 {[%clk 0:00:05]}  fxg4 {[%clk 0:00:06]} 49. Ra6 {[%clk 0:00:06]}  g3 {[%clk 0:00:06]} 50. Rxb6+ {[%clk 0:00:06]}  Kf5 {[%clk 0:00:06]} 51. Rb3 {[%clk 0:00:06]}  Kf4 {[%clk 0:00:07]} 52. Rc3 {[%clk 0:00:03]}  g2 {[%clk 0:00:06]} 53. Rc1 {[%clk 0:00:04]}  e5 {[%clk 0:00:07]} 54. a4 {[%clk 0:00:04]}  e4 {[%clk 0:00:07]} 55. a5 {[%clk 0:00:05]}  e3 {[%clk 0:00:08]} 56. a6 {[%clk 0:00:05]}  Kf3 {[%clk 0:00:09]} 57. a7 {[%clk 0:00:05]}  Kf2 {[%clk 0:00:09]} 58. a8=Q {[%clk 0:00:05]}  g1=Q {[%clk 0:00:10]} 59. Rxg1 {[%clk 0:00:03]}  Kxg1 {[%clk 0:00:11]} 60. Qa7 {[%clk 0:00:02]}  Kf2 {[%clk 0:00:11]} 61. b4 {[%clk 0:00:03]}  Kf3 {[%clk 0:00:11]} 62. Qd4 {[%clk 0:00:03]}  e2 {[%clk 0:00:12]} 63. Qd3+ {[%clk 0:00:03]}  Kf2 {[%clk 0:00:12]} 64. Qd2 {[%clk 0:00:04]}  Kf1 {[%clk 0:00:12]} 65. Qf4+ {[%clk 0:00:04]}  Kg2 {[%clk 0:00:12]} 66. Qe3 {[%clk 0:00:04]}  Kf1 {[%clk 0:00:12]} 67. Qf3+ {[%clk 0:00:05]}  Ke1 {[%clk 0:00:12]} 68. b5 {[%clk 0:00:05]}  Kd2 {[%clk 0:00:13]} 69. Qxe2+ {[%clk 0:00:05]}  Kxe2 {[%clk 0:00:14]} 70. b6 {[%clk 0:00:06]} 1-0


[Site "https://www.chess.com"]

[Event "Titled Tuesday Blitz May 24 Late 2022"]
[White "Papp, Levente"]
[Black "Ward, Ieuan C"]
[WhiteFideId "751243"]
[BlackFideId "406627"]
[WhiteElo "2308"]
[BlackElo "2332"]
[Result "1/2-1/2"]
[Round "03"]
[TimeControl "180+1"]
[Date "2022.05.25"]
[WhiteClock "0:00:05"]
[BlackClock "0:00:04"]

1. Nf3 {[%clk 0:03:00]}  e6 {[%clk 0:02:55]} 2. g3 {[%clk 0:02:59]}  d5 {[%clk 0:02:55]} 3. Bg2 {[%clk 0:03:00]}  Nf6 {[%clk 0:02:55]} 4. O-O {[%clk 0:03:00]}  Be7 {[%clk 0:02:55]} 5. b3 {[%clk 0:03:00]}  O-O {[%clk 0:02:55]} 6. Bb2 {[%clk 0:03:01]}  c5 {[%clk 0:02:55]} 7. e3 {[%clk 0:03:00]}  Nc6 {[%clk 0:02:55]} 8. c4 {[%clk 0:03:00]}  b6 {[%clk 0:02:54]} 9. Nc3 {[%clk 0:02:59]}  Bb7 {[%clk 0:02:54]} 10. d4 {[%clk 0:02:59]}  Rc8 {[%clk 0:02:52]} 11. cxd5 {[%clk 0:02:55]}  Nxd5 {[%clk 0:02:50]} 12. dxc5 {[%clk 0:02:50]}  Nxc3 {[%clk 0:02:47]} 13. Bxc3 {[%clk 0:02:49]}  Bxc5 {[%clk 0:02:46]} 14. Qe2 {[%clk 0:02:47]}  Qe7 {[%clk 0:02:40]} 15. h4 {[%clk 0:02:34]}  Rfd8 {[%clk 0:02:35]} 16. Ng5 {[%clk 0:02:32]}  h6 {[%clk 0:02:29]} 17. Ne4 {[%clk 0:02:29]}  Bb4 {[%clk 0:02:28]} 18. Bb2 {[%clk 0:01:49]}  f5 {[%clk 0:02:26]} 19. Nc3 {[%clk 0:01:49]}  Nd4 {[%clk 0:02:23]} 20. exd4 {[%clk 0:01:45]}  Bxg2 {[%clk 0:02:23]} 21. Kxg2 {[%clk 0:01:40]}  Bxc3 {[%clk 0:02:23]} 22. Bxc3 {[%clk 0:01:38]}  Rxc3 {[%clk 0:02:24]} 23. Rad1 {[%clk 0:01:34]}  Qf6 {[%clk 0:02:09]} 24. Rfe1 {[%clk 0:01:31]}  Rd6 {[%clk 0:01:59]} 25. Qa6 {[%clk 0:01:17]}  Rxd4 {[%clk 0:01:36]} 26. Qxa7 {[%clk 0:01:17]}  f4 {[%clk 0:01:20]} 27. Rxd4 {[%clk 0:01:03]}  Qxd4 {[%clk 0:01:18]} 28. Qb8+ {[%clk 0:01:03]}  Kf7 {[%clk 0:01:13]} 29. Qxf4+ {[%clk 0:01:04]}  Qxf4 {[%clk 0:01:12]} 30. gxf4 {[%clk 0:01:05]}  Kf6 {[%clk 0:01:06]} 31. Re3 {[%clk 0:00:59]}  Rc1 {[%clk 0:00:54]} 32. a4 {[%clk 0:00:47]}  Rb1 {[%clk 0:00:49]} 33. Kf3 {[%clk 0:00:45]}  Rh1 {[%clk 0:00:39]} 34. Kg4 {[%clk 0:00:42]}  Rg1+ {[%clk 0:00:36]} 35. Kf3 {[%clk 0:00:42]}  Rh1 {[%clk 0:00:36]} 36. Kg4 {[%clk 0:00:30]}  Rg1+ {[%clk 0:00:35]} 37. Rg3 {[%clk 0:00:31]}  Rb1 {[%clk 0:00:29]} 38. Kh3 {[%clk 0:00:14]}  g6 {[%clk 0:00:26]} 39. Rc3 {[%clk 0:00:13]}  Rh1+ {[%clk 0:00:24]} 40. Kg3 {[%clk 0:00:13]}  Rb1 {[%clk 0:00:22]} 41. Kf3 {[%clk 0:00:12]}  Rh1 {[%clk 0:00:18]} 42. Kg2 {[%clk 0:00:12]}  Rxh4 {[%clk 0:00:17]} 43. Kg3 {[%clk 0:00:13]}  Rh5 {[%clk 0:00:15]} 44. Rc6 {[%clk 0:00:12]}  b5 {[%clk 0:00:15]} 45. a5 {[%clk 0:00:13]}  b4 {[%clk 0:00:15]} 46. a6 {[%clk 0:00:12]}  Ra5 {[%clk 0:00:16]} 47. Rb6 {[%clk 0:00:12]}  h5 {[%clk 0:00:14]} 48. Kf3 {[%clk 0:00:11]}  Ra3 {[%clk 0:00:14]} 49. Rxb4 {[%clk 0:00:09]}  Rxa6 {[%clk 0:00:14]} 50. Kg3 {[%clk 0:00:10]}  Ra3 {[%clk 0:00:13]} 51. Rb8 {[%clk 0:00:10]}  Kf5 {[%clk 0:00:12]} 52. Rf8+ {[%clk 0:00:09]}  Ke4 {[%clk 0:00:12]} 53. Rf6 {[%clk 0:00:08]}  Rxb3+ {[%clk 0:00:12]} 54. Kh4 {[%clk 0:00:09]}  Rb1 {[%clk 0:00:11]} 55. Rxg6 {[%clk 0:00:06]}  Kxf4 {[%clk 0:00:11]} 56. Rf6+ {[%clk 0:00:06]}  Ke5 {[%clk 0:00:11]} 57. Rf3 {[%clk 0:00:07]}  Rh1+ {[%clk 0:00:11]} 58. Kg5 {[%clk 0:00:07]}  Rh2 {[%clk 0:00:11]} 59. Re3+ {[%clk 0:00:06]}  Kd5 {[%clk 0:00:10]} 60. f4 {[%clk 0:00:06]}  Rf2 {[%clk 0:00:10]} 61. Re5+ {[%clk 0:00:05]}  Kd6 {[%clk 0:00:10]} 62. Re4 {[%clk 0:00:06]}  Rf1 {[%clk 0:00:10]} 63. Kxh5 {[%clk 0:00:06]}  Kd5 {[%clk 0:00:11]} 64. Re5+ {[%clk 0:00:06]}  Kd4 {[%clk 0:00:11]} 65. Kg5 {[%clk 0:00:06]}  Kd3 {[%clk 0:00:08]} 66. Ra5 {[%clk 0:00:05]}  Rg1+ {[%clk 0:00:09]} 67. Kf6 {[%clk 0:00:05]}  Rf1 {[%clk 0:00:09]} 68. Ra4 {[%clk 0:00:06]}  Re1 {[%clk 0:00:09]} 69. Ra6 {[%clk 0:00:04]}  Re4 {[%clk 0:00:09]} 70. Kg5 {[%clk 0:00:03]}  Ke3 {[%clk 0:00:08]} 71. Ra3+ {[%clk 0:00:03]}  Kd4 {[%clk 0:00:08]} 72. Ra4+ {[%clk 0:00:03]}  Ke3 {[%clk 0:00:09]} 73. Ra3+ {[%clk 0:00:03]}  Kd4 {[%clk 0:00:09]} 74. Rb3 {[%clk 0:00:03]}  Kc4 {[%clk 0:00:08]} 75. Rf3 {[%clk 0:00:03]}  Kd4 {[%clk 0:00:08]} 76. Kf6 {[%clk 0:00:03]}  Kd5 {[%clk 0:00:08]} 77. Rd3+ {[%clk 0:00:03]}  Kc4 {[%clk 0:00:08]} 78. Rf3 {[%clk 0:00:04]}  Kd5 {[%clk 0:00:08]} 79. Rf1 {[%clk 0:00:05]}  Kd4 {[%clk 0:00:08]} 80. Rd1+ {[%clk 0:00:05]}  Ke3 {[%clk 0:00:08]} 81. Kg5 {[%clk 0:00:06]}  Ke2 {[%clk 0:00:08]} 82. Rh1 {[%clk 0:00:05]}  Kf3 {[%clk 0:00:08]} 83. Rh3+ {[%clk 0:00:06]}  Kg2 {[%clk 0:00:09]} 84. Ra3 {[%clk 0:00:07]}  Re1 {[%clk 0:00:09]} 85. Kf6 {[%clk 0:00:07]}  Kf2 {[%clk 0:00:07]} 86. Rd3 {[%clk 0:00:04]}  Kg2 {[%clk 0:00:07]} 87. Rd6 {[%clk 0:00:03]}  Kg3 {[%clk 0:00:07]} 88. Kg5 {[%clk 0:00:03]}  Kf3 {[%clk 0:00:06]} 89. Rd3+ {[%clk 0:00:03]}  Ke4 {[%clk 0:00:06]} 90. Rg3 {[%clk 0:00:03]}  Rf1 {[%clk 0:00:05]} 91. Rg2 {[%clk 0:00:03]}  Rxf4 {[%clk 0:00:04]} 92. Re2+ {[%clk 0:00:03]}  Kf3 {[%clk 0:00:04]} 93. Rf2+ {[%clk 0:00:03]}  Kxf2 {[%clk 0:00:04]} 94. Kxf4 {[%clk 0:00:04]}  e5+ {[%clk 0:00:04]} 95. Kxe5 {[%clk 0:00:05]} 1/2-1/2


[Site "https://www.chess.com"]